fUSD/lending_fUSD_20250215
["ID","MTS","AMOUNT","RATE_DAILY","PERIOD"]
[353132745,1739591446525,-1444.32,0.00011162,2]
[353132746,1739591446534,-500.0,0.00011163,2]
[353132748,1739591446544,-500.0,0.00011163,2]
[353132750,1739591446553,-606.46,0.00011163,2]
[353132752,1739591446562,-500.0,0.00011163,2]
[353132753,1739591446572,-500.0,0.00011163,2]
[353132755,1739591446581,-500.0,0.00011163,2]
[353132757,1739591446590,-500.0,0.00011163,2]
[353132759,1739591446599,-500.0,0.00011163,2]
[353132761,1739591446609,-500.0,0.00011163,2]
[353132763,1739591446618,-500.0,0.00011163,2]
[353132765,1739591446627,-500.0,0.00011163,2]
[353132767,1739591446637,-500.0,0.00011163,2]
[353132769,1739591446647,-500.0,0.00011163,2]
[353132771,1739591446657,-500.0,0.00011163,2]
[353132773,1739591446671,-500.0,0.00011163,2]
[353132775,1739591446681,-523.86,0.00011163,2]
[353132777,1739591446690,-500.0,0.00011163,2]
[353132779,1739591446699,-500.0,0.00011163,2]
[353132781,1739591446710,-534.2,0.00011163,2]
[353132783,1739591446720,-500.0,0.00011163,2]
[353132785,1739591446730,-500.0,0.00011163,2]
[353132787,1739591446740,-500.0,0.00011163,2]
[353132789,1739591446749,-525.05,0.00011163,2]
[353132791,1739591446760,-500.0,0.00011163,2]
[353132793,1739591446769,-500.0,0.00011163,2]
[353132795,1739591446779,-500.0,0.00011163,2]
[353132797,1739591446788,-500.0,0.00011163,2]
[353132799,1739591446798,-500.0,0.00011163,2]
[353132801,1739591446808,-500.0,0.00011163,2]
[353132803,1739591446817,-500.0,0.00011163,2]
[353132804,1739591446827,-507.2,0.00011163,2]
[353132805,1739591446837,-840.82,0.00011163,2]
[353132806,1739591446847,-500.0,0.00011163,2]
[353132807,1739591446857,-500.0,0.00011163,2]
[353132808,1739591446887,-500.0,0.00011163,2]
[353132809,1739591446897,-500.0,0.00011163,2]
[353132810,1739591446907,-532.13,0.00011163,2]
[353132811,1739591446917,-500.0,0.00011163,2]
[353132812,1739591446927,-500.0,0.00011163,2]
[353132813,1739591446936,-500.0,0.00011163,2]
[353132814,1739591446949,-591.91,0.00011163,2]
[353132815,1739591446961,-500.0,0.00011163,2]
[353132816,1739591446974,-500.0,0.00011163,2]
[353132817,1739591446993,-579.85,0.00011163,2]
[353132818,1739591447022,-577.6,0.00011163,2]
[353132819,1739591447077,-500.0,0.00011163,2]
[353132820,1739591447173,-562.99,0.00011163,2]
[353132821,1739591447276,-500.0,0.00011163,2]
[353132822,1739591447409,-500.0,0.00011163,2]
[353132823,1739591447508,-947.28,0.00011163,2]
[353132824,1739591447602,-671.25,0.00011163,2]
[353132825,1739591447697,-500.0,0.00011163,2]
[353132826,1739591447787,-500.0,0.00011163,2]
[353132827,1739591447871,-500.0,0.00011163,2]
[353132828,1739591447982,-500.0,0.00011163,2]
[353132829,1739591448042,-689.14,0.00011163,2]
[353132830,1739591448058,-500.0,0.00011163,2]
[353132831,1739591448070,-500.0,0.00011163,2]
[353132832,1739591448082,-500.0,0.00011163,2]
[353132833,1739591448091,-660.67,0.00011163,2]
[353132834,1739591448101,-500.0,0.00011163,2]
[353132835,1739591448111,-500.0,0.00011163,2]
[353132836,1739591448120,-500.0,0.00011163,2]
[353132837,1739591448130,-603.01,0.00011163,2]
[353132838,1739591448140,-500.0,0.00011163,2]
[353132839,1739591448150,-503.03,0.00011163,2]
[353132840,1739591448159,-500.0,0.00011163,2]
[353132841,1739591448169,-500.0,0.00011163,2]
[353132842,1739591448178,-698.83,0.00011163,2]
[353132843,1739591448188,-500.0,0.00011163,2]
[353132844,1739591448198,-1286.29,0.00011163,2]
[353132845,1739591448208,-500.0,0.00011163,2]
[353132846,1739591448217,-957.51,0.00011163,2]
[353132847,1739591448227,-590.77,0.00011163,2]
[353132848,1739591448237,-577.21,0.00011163,2]
[353132849,1739591448246,-552.12622683,0.00011163,2]
[353132850,1739591448256,-1362.33,0.00011163,2]
[353132851,1739591448266,-500.94,0.00011163,2]
[353132852,1739591448275,-500.0,0.00011163,2]
[353132853,1739591448285,-537.23,0.00011163,2]
[353132854,1739591448295,-500.0,0.00011163,2]
[353132855,1739591448305,-1093.04,0.00011163,2]
[353132856,1739591448315,-750.63,0.00011163,2]
[353132857,1739591448326,-586.0,0.00011163,2]
[353132858,1739591448337,-500.0,0.00011163,2]
[353132859,1739591448348,-1563.12,0.00011163,2]
[353132860,1739591448357,-668.95,0.00011163,2]
[353132861,1739591448367,-500.0,0.00011163,2]
[353132862,1739591448377,-506.85645406,0.00011163,2]
[353132863,1739591448387,-984.49,0.00011163,2]
[353132864,1739591448397,-500.0,0.00011163,2]
[353132865,1739591448407,-500.0,0.00011163,2]
[353132866,1739591448416,-815.22,0.00011163,2]
[353132867,1739591448429,-500.0,0.00011163,2]
[353132868,1739591448440,-704.61,0.00011163,2]
[353132869,1739591448450,-500.0,0.00011163,2]
[353132870,1739591448460,-1218.57,0.00011163,2]
[353132871,1739591448470,-500.0,0.00011163,2]
[353132872,1739591448480,-1115.38,0.00011163,2]
[353132873,1739591448490,-544.05,0.00011163,2]
[353132874,1739591448499,-500.0,0.00011163,2]
[353132875,1739591448509,-1344.0,0.00011163,2]
[353132876,1739591448518,-500.0,0.00011163,2]
[353132877,1739591448527,-500.0,0.00011163,2]
[353132878,1739591448537,-500.0,0.00011163,2]
[353132879,1739591448546,-1591.15,0.00011163,2]
[353132880,1739591448556,-500.0,0.00011163,2]
[353132881,1739591448565,-500.0,0.00011163,2]
[353132882,1739591448574,-500.0,0.00011163,2]
[353132883,1739591448583,-500.0,0.00011163,2]
[353132884,1739591448592,-2801.04,0.00011163,2]
[353132885,1739591448601,-1185.61,0.00011163,2]
[353132886,1739591448611,-257.50196395,0.00011163,2]
[353132887,1739591448620,-558.56,0.00011163,2]
[353132888,1739591448630,-1294.83,0.00011163,2]
[353132889,1739591448640,-580.52,0.00011163,2]
[353132890,1739591448650,-500.0,0.00011163,2]
[353132891,1739591448663,-170.96,0.00011163,2]
[353132892,1739591448672,-531.67,0.00011163,2]
[353132893,1739591448682,-1190.27,0.00011163,2]
[353132894,1739591448692,-500.0,0.00011163,2]
[353132895,1739591448702,-500.0,0.00011163,2]
[353132896,1739591448712,-500.0,0.00011163,2]
[353132897,1739591448722,-500.0,0.00011163,2]
[353132898,1739591448731,-500.0,0.00011163,2]
[353132899,1739591448742,-903.09,0.00011163,2]
[353132900,1739591448753,-500.0,0.00011163,2]
[353132901,1739591448763,-1839.4,0.00011163,2]
[353132902,1739591448773,-500.0,0.00011163,2]
[353132903,1739591448783,-500.0,0.00011163,2]
[353132904,1739591448793,-500.0,0.00011163,2]
[353132905,1739591448803,-500.0,0.00011163,2]
[353132906,1739591448814,-578.27,0.00011163,2]
[353132907,1739591448824,-584.53,0.00011163,2]
[353132908,1739591448835,-738.04,0.00011163,2]
[353132909,1739591448845,-592.01,0.00011163,2]
[353132910,1739591448856,-714.96,0.00011164,2]
[353132911,1739591448867,-1021.72,0.00011164,2]
[353132912,1739591448877,-683.57,0.00011164,2]
[353132913,1739591448887,-500.0,0.00011164,2]
[353132914,1739591448896,-693.308806,0.00011164,2]
[353132915,1739591448905,-570.01,0.00011164,2]
[353132916,1739591448915,-743.73,0.00011164,2]
[353132917,1739591448925,-800.056383,0.00011164,2]
[353132918,1739591448935,-500.0,0.00011164,2]
[353132919,1739591448944,-990.3,0.00011164,2]
[353132920,1739591448954,-692.77,0.00011164,2]
[353132921,1739591448963,-842.37,0.00011164,2]
[353132922,1739591448973,-500.0,0.00011164,2]
[353132923,1739591448983,-1801.48,0.00011164,2]
[353132924,1739591448992,-804.54,0.00011164,2]
[353132925,1739591449002,-872.2,0.00011164,2]
[353132926,1739591449012,-798.02,0.00011164,2]
[353132927,1739591449022,-500.0,0.00011164,2]
[353132928,1739591449032,-748.58,0.00011164,2]
[353132929,1739591449042,-1014.18,0.00011164,2]
[353132930,1739591449052,-1017.03,0.00011164,2]
[353132931,1739591449062,-1255.81,0.00011164,2]
[353132932,1739591449074,-1436.53,0.00011164,2]
[353132933,1739591449090,-753.65,0.00011164,2]
[353132934,1739591449105,-1056.08,0.00011164,2]
[353132935,1739591449119,-1096.86,0.00011164,2]
[353132936,1739591449132,-1586.95,0.00011164,2]
[353132937,1739591449143,-1425.81,0.00011164,2]
[353132938,1739591449154,-1424.59,0.00011164,2]
[353132939,1739591449165,-500.0,0.00011164,2]
[353132940,1739591449178,-1506.77,0.00011164,2]
[353132941,1739591449192,-1319.52,0.00011164,2]
[353132942,1739591449207,-3808.84,0.00011164,2]
[353132943,1739591449220,-4116.26,0.00011164,2]
[353132944,1739591449235,-703.7,0.00011164,2]
[353132945,1739591449248,-500.0,0.00011164,2]
[353132946,1739591449262,-938.36,0.00011164,2]
[353132947,1739591449277,-1266.26,0.00011164,2]
[353132948,1739591449290,-1893.27,0.00011164,2]
[353132949,1739591449302,-941.53,0.00011164,2]
[353132950,1739591449315,-1835.22,0.00011164,2]
[353132951,1739591449326,-1202.58,0.00011164,2]
[353132952,1739591449339,-1074.75,0.00011164,2]
[353132953,1739591449351,-2312.02,0.00011164,2]
[353132954,1739591449364,-509.58,0.00011164,2]
[353132955,1739591449377,-351.8491239,0.00011184,2]
[353132956,1739591449390,-3067.3943966,0.00011192,2]
[353132957,1739591449402,-2385.3322609,0.00011192,2]
[353132958,1739591449415,-584.2567366,0.00011192,2]
[353132959,1739591449427,-500.0,0.000112,2]
[353132960,1739591449439,-500.0,0.000112,2]
[353132961,1739591449452,-500.0,0.00011201,2]
[353132962,1739591449465,-500.0,0.00011201,2]
[353132963,1739591449478,-500.0,0.00011201,2]
[353132964,1739591449492,-497.61239917,0.00011201,2]
[353132965,1739591449505,-500.0,0.00011201,2]
[353132966,1739591449516,-570.59,0.00011201,2]
[353132967,1739591449530,-500.0,0.00011201,2]
[353132968,1739591449544,-601.34,0.00011201,2]
[353132969,1739591449556,-500.0,0.00011201,2]
[353132970,1739591449570,-815.15,0.00011201,2]
[353132971,1739591449583,-720.06,0.00011201,2]
[353132972,1739591449596,-717.7,0.00011201,2]
[353132973,1739591449608,-533.56,0.00011201,2]
[353132974,1739591449620,-665.5,0.00011201,2]
[353132975,1739591449632,-885.02,0.00011201,2]
[353132976,1739591449645,-643.05,0.00011201,2]
[353132977,1739591449658,-500.0,0.00011201,2]
[353132978,1739591449674,-500.0,0.00011201,2]
[353132979,1739591449687,-500.0,0.00011201,2]
[353132980,1739591449700,-500.0,0.00011201,2]
[353132981,1739591449712,-614.93249799,0.00011201,2]
[353132982,1739591449725,-732.52,0.00011201,2]
[353132983,1739591449738,-500.0,0.00011201,2]
[353132984,1739591449751,-809.04,0.00011201,2]
[353132985,1739591449763,-579.99,0.00011201,2]
[353132986,1739591449775,-546.6,0.00011201,2]
[353132987,1739591449788,-500.0,0.00011201,2]
[353132988,1739591449802,-500.0,0.00011201,2]
[353132989,1739591449817,-500.0,0.00011201,2]
[353132990,1739591449831,-500.0,0.00011201,2]
[353132991,1739591449843,-500.0,0.00011201,2]
[353132992,1739591449855,-500.0,0.00011201,2]
[353132993,1739591449865,-500.0,0.00011201,2]
[353132994,1739591449878,-500.0,0.00011201,2]
[353132995,1739591449890,-500.0,0.00011201,2]
[353132996,1739591449904,-507.79,0.00011201,2]
[353132997,1739591449919,-507.79,0.00011201,2]
[353132998,1739591449933,-300.0,0.00011201,2]
[353132999,1739591449946,-495.27,0.00011201,2]
[353133000,1739591449958,-4403.29117614,0.00011202,2]
[353133001,1739591451155,-500.0,0.00010998,2]
[353133002,1739591451166,-243.37392939,0.00010998,2]
[353133003,1739591451177,-502.09916252,0.00010998,2]
[353133004,1739591451188,-500.0,0.00010998,2]
[353133005,1739591451199,-150.0,0.00011129,2]
[353133006,1739591451211,-2927.80576098,0.00011202,2]
[353133007,1739591451225,-20314.34333881,0.00011202,2]
[353133008,1739591451264,-500.0,0.0001108,2]
[353133009,1739591451274,-37520.55194168,0.00011202,2]
[353133010,1739591452499,-500.0,0.00010958,2]
[353133011,1739591452509,-500.0,0.00010998,2]
[353133012,1739591452519,-510.96434589,0.00010998,2]
[353133013,1739591452528,-500.0,0.00010998,2]
[353133014,1739591452537,-500.0,0.00011041,2]
[353133015,1739591452547,-500.0,0.00011123,2]
[353133016,1739591452556,-494.06,0.00011163,2]
[353133017,1739591452565,-67583.87865955,0.00011202,2]
[353133018,1739591452577,-183077.17684818,0.00011202,2]
[353133019,1739591452597,-126461.82519444,0.00011202,2]
[353133020,1739591452606,-151.0,0.00011202,2]
[353133021,1739591452616,-152.714792,0.00011202,2]
[353133022,1739591452625,-4000.0,0.00011202,2]
[353133023,1739591452635,-507.79,0.00011204,2]
[353133024,1739591452644,-300.0,0.00011204,2]
[353133025,1739591452654,-308.75575187,0.00011204,2]
[353133026,1739591452667,-300.0,0.00011204,2]
[353133027,1739591452677,-408.70169777,0.00011204,2]
[353133028,1739591452686,-300.0,0.00011204,2]
[353133029,1739591452696,-202.812397,0.00011205,2]
[353133030,1739591452707,-500.0,0.00011205,2]
[353133031,1739591452717,-500.0,0.00011205,2]
[353133032,1739591452726,-549.29,0.00011205,2]
[353133033,1739591452737,-500.0,0.00011205,2]
[353133034,1739591452747,-500.0,0.00011205,2]
[353133035,1739591452757,-500.0,0.00011205,2]
[353133036,1739591452766,-69.45127576,0.00011205,2]
[353133037,1739591453100,-430.54872424,0.00011205,2]
[353133038,1739591453110,-500.0,0.00011205,2]
[353133039,1739591453120,-500.0,0.00011205,2]
[353133040,1739591453130,-500.0,0.00011205,2]
[353133041,1739591453139,-500.0,0.00011205,2]
[353133042,1739591453149,-500.0,0.00011205,2]
[353133043,1739591453159,-505.18,0.00011205,2]
[353133044,1739591453168,-500.0,0.00011205,2]
[353133045,1739591453177,-500.0,0.00011205,2]
[353133046,1739591453187,-500.0,0.00011205,2]
[353133047,1739591453196,-423.56431039,0.00011205,2]
[353133048,1739591453228,-76.43568961,0.00011205,2]
[353133049,1739591453238,-500.0,0.00011205,2]
[353133050,1739591453251,-500.0,0.00011205,2]
[353133051,1739591453260,-500.0,0.00011205,2]
[353133052,1739591453269,-500.0,0.00011205,2]
[353133053,1739591453282,-93.70636145,0.00011205,2]
[353133054,1739591453294,-406.29363855,0.00011205,2]
[353133055,1739591453305,-128.5651517,0.00011205,2]
[353133056,1739591453318,-371.4348483,0.00011205,2]
[353133057,1739591453329,-500.0,0.00011205,2]
[353133058,1739591453340,-46.21589989,0.00011205,2]
[353133059,1739591453795,-500.0,0.00010958,2]
[353133060,1739591453804,-360.004999,0.00010998,2]
[353133061,1739591453816,-139.995001,0.00010998,2]
[353133062,1739591453825,-500.0,0.00010998,2]
[353133063,1739591453835,-318.935517,0.00010998,2]
[353133064,1739591453904,-176.594483,0.00010998,2]
[353133065,1739591453915,-468.135517,0.0001108,2]
[353133066,1739591454197,-500.0,0.00010958,2]
[353133067,1739591454206,-500.0,0.00010958,2]
[353133068,1739591454216,-500.6006425,0.00010998,2]
[353133069,1739591454225,-499.3993575,0.00011041,2]
[353133070,1739591454243,-0.6006425,0.00011041,2]
[353133071,1739591454252,-500.0,0.00011041,2]
[353133072,1739591454262,-31.864483,0.0001108,2]
[353133073,1739591454271,-500.0,0.00011123,2]
[353133074,1739591454281,-301.67,0.00011163,2]
[353133075,1739591454290,-453.78410011,0.00011205,2]
[353133076,1739591454300,-268.41419759,0.00011205,2]
[353133077,1739591454309,-500.0,0.00011205,2]
[353133078,1739591454321,-500.0,0.00011205,2]
[353133079,1739591454336,-500.0,0.00011205,2]
[353133080,1739591454347,-500.0,0.00011205,2]
[353133081,1739591454357,-500.0,0.00011205,2]
[353133082,1739591454367,-500.0,0.00011205,2]
[353133083,1739591454376,-500.0,0.00011205,2]
[353133084,1739591454386,-500.0,0.00011205,2]
[353133085,1739591454396,-838.86,0.00011205,2]
[353133086,1739591454406,-500.0,0.00011205,2]
[353133087,1739591454415,-500.0,0.00011205,2]
[353133088,1739591454424,-500.0,0.00011205,2]
[353133089,1739591454433,-145.02852135,0.00011205,2]
[353133090,1739591454445,-287.54806406,0.00011205,2]
[353133091,1739591454457,-67.42341459,0.00011205,2]
[353133092,1739591454466,-330.88076832,0.00011205,2]
[353133093,1739591454475,-500.0,0.00011205,2]
[353133094,1739591454484,-500.0,0.00011205,2]
[353133095,1739591454494,-624.26,0.00011205,2]
[353133096,1739591454503,-1082.97,0.00011205,2]
[353133097,1739591454512,-500.0,0.00011205,2]
[353133098,1739591454522,-500.0,0.00011205,2]
[353133099,1739591454531,-500.0,0.00011205,2]
[353133100,1739591454541,-500.0,0.00011205,2]
[353133101,1739591454551,-500.0,0.00011205,2]
[353133102,1739591454560,-500.0,0.00011205,2]
[353133103,1739591454569,-500.0,0.00011205,2]
[353133104,1739591454579,-500.0,0.00011205,2]
[353133105,1739591454589,-500.0,0.00011205,2]
[353133106,1739591454598,-500.0,0.00011205,2]
[353133107,1739591454607,-500.0,0.00011205,2]
[353133108,1739591454617,-500.0,0.00011205,2]
[353133109,1739591454627,-500.0,0.00011205,2]
[353133110,1739591454636,-500.0,0.00011205,2]
[353133111,1739591454646,-500.0,0.00011205,2]
[353133112,1739591454658,-787.99,0.00011205,2]
[353133113,1739591454671,-500.0,0.00011205,2]
[353133114,1739591454681,-500.0,0.00011205,2]
[353133115,1739591454691,-500.0,0.00011205,2]
[353133116,1739591454702,-500.0,0.00011205,2]
[353133117,1739591454711,-500.0,0.00011205,2]
[353133118,1739591454722,-500.0,0.00011205,2]
[353133119,1739591454732,-500.0,0.00011205,2]
[353133120,1739591454745,-500.0,0.00011205,2]
[353133121,1739591454756,-500.0,0.00011205,2]
[353133122,1739591454766,-512.32,0.00011205,2]
[353133123,1739591454776,-204.81573096,0.00011205,2]
[353133124,1739591454785,-500.0,0.00011205,2]
[353133125,1739591454795,-500.0,0.00011205,2]
[353133126,1739591454806,-500.0,0.00011205,2]
[353133127,1739591454815,-500.0,0.00011205,2]
[353133128,1739591454825,-500.0,0.00011205,2]
[353133129,1739591454835,-500.0,0.00011205,2]
[353133130,1739591454845,-500.0,0.00011205,2]
[353133131,1739591454855,-500.0,0.00011205,2]
[353133132,1739591454865,-500.0,0.00011205,2]
[353133133,1739591454875,-500.0,0.00011205,2]
[353133134,1739591454885,-500.0,0.00011205,2]
[353133135,1739591454895,-500.0,0.00011205,2]
[353133136,1739591454905,-500.0,0.00011205,2]
[353133137,1739591454914,-500.0,0.00011205,2]
[353133138,1739591454924,-500.0,0.00011205,2]
[353133139,1739591454934,-500.0,0.00011205,2]
[353133140,1739591454943,-500.0,0.00011205,2]
[353133141,1739591454953,-500.0,0.00011205,2]
[353133142,1739591454965,-500.0,0.00011205,2]
[353133143,1739591454975,-500.0,0.00011205,2]
[353133144,1739591454984,-500.0,0.00011205,2]
[353133145,1739591454994,-500.0,0.00011205,2]
[353133146,1739591455004,-385.59375159,0.00011205,2]
[353133147,1739591455014,-500.0,0.00011205,2]
[353133148,1739591455023,-500.0,0.00011205,2]
[353133149,1739591455033,-552.34,0.00011205,2]
[353133150,1739591455043,-1042.01,0.00011205,2]
[353133151,1739591455053,-500.0,0.00011205,2]
[353133152,1739591455062,-602.76,0.00011205,2]
[353133153,1739591455071,-1440.09,0.00011205,2]
[353133154,1739591455082,-1007.21,0.00011205,2]
[353133155,1739591455092,-500.0,0.00011205,2]
[353133156,1739591455102,-500.0,0.00011205,2]
[353133157,1739591455111,-714.45,0.00011205,2]
[353133158,1739591455121,-723.65799699,0.00011205,2]
[353133159,1739591551536,757.21,8.276e-05,2]
[353133163,1739591915979,1000.0,8.102e-05,2]
[353133164,1739592038552,1220.8693,8.699e-05,2]
[353133177,1739592632428,-3207.30363253,8.836e-05,2]
[353133178,1739592632441,-656.61956747,8.836e-05,2]
[353133179,1739592632451,-3221.842,8.836e-05,2]
[353133180,1739592632461,-12254.4855,8.836e-05,2]
[353133181,1739592632472,-10143.97174855,8.973e-05,2]
[353133182,1739592632485,-1081.39072742,8.973e-05,2]
[353133183,1739592632497,-422.48311837,8.973e-05,2]
[353133184,1739592632516,-3968.33438009,8.973e-05,2]
[353133185,1739592632528,-891.00211688,8.973e-05,2]
[353133186,1739592632539,-5371.78877352,8.973e-05,2]
[353133187,1739592632551,-2864.95144891,8.973e-05,2]
[353133188,1739592632563,-950.50976812,8.973e-05,2]
[353133189,1739592633580,-970.77143134,8.973e-05,2]
[353133190,1739592633592,-308.13345431,8.973e-05,2]
[353133191,1739592633606,-11446.94413249,8.973e-05,2]
[353133192,1739592633616,-1000.0,9.558e-05,2]
[353133193,1739592633626,-881.2,9.682e-05,2]
[353133194,1739592633636,-283.85,9.717e-05,2]
[353133195,1739592633646,-179.01,9.722e-05,2]
[353133196,1739592633655,-349.96,9.784e-05,2]
[353133197,1739592633666,-250.0,9.832e-05,2]
[353133198,1739592633675,-23900.0,0.00010082,2]
[353133199,1739592633685,-458.28,0.00010137,2]
[353133200,1739592633696,-815.71670439,0.00010392,2]
[353133201,1739592633706,-150.99,0.00010475,2]
[353133202,1739592633715,-150.99,0.00010475,2]
[353133204,1739592633725,-757.16,0.00010475,2]
[353133205,1739592633735,-757.21,0.0001054,2]
[353133206,1739592633745,-150.0,0.00010661,2]
[353133207,1739592633755,-150.0,0.00010677,2]
[353133208,1739592633765,-1000.0,0.00010753,2]
[353133209,1739592633775,-312.28449106,0.00010897,2]
[353133210,1739592633785,-274.70102536,0.000109,2]
[353133211,1739592633796,-150.0,0.00010918,2]
[353133212,1739592633805,-505.98,0.00010958,2]
[353133213,1739592633814,-645.79,0.00010958,2]
[353133214,1739592633824,-500.0,0.00010958,2]
[353133215,1739592633834,-500.0,0.00010958,2]
[353133216,1739592633844,-500.0,0.00010958,2]
[353133217,1739592633853,-779.18,0.00010958,2]
[353133218,1739592633863,-500.0,0.00010958,2]
[353133219,1739592633872,-500.0,0.00010958,2]
[353133220,1739592633882,-500.0,0.00010958,2]
[353133221,1739592633891,-500.0,0.00010958,2]
[353133222,1739592633900,-500.0,0.00010958,2]
[353133223,1739592633910,-500.0,0.00010958,2]
[353133224,1739592633921,-969.28,0.00010958,2]
[353133225,1739592634176,-624.13,0.00010958,2]
[353133226,1739592634188,-500.0,0.00010958,2]
[353133227,1739592634199,-500.0,0.00010958,2]
[353133228,1739592634209,-500.0,0.00010958,2]
[353133229,1739592634219,-500.0,0.00010958,2]
[353133230,1739592634230,-500.0,0.00010958,2]
[353133231,1739592634239,-500.0,0.00010958,2]
[353133232,1739592634250,-500.0,0.00010958,2]
[353133233,1739592634260,-500.0,0.00010958,2]
[353133234,1739592634270,-500.0,0.00010958,2]
[353133235,1739592634280,-500.0,0.00010958,2]
[353133236,1739592634290,-500.0,0.00010958,2]
[353133237,1739592634299,-500.0,0.00010958,2]
[353133238,1739592634309,-500.0,0.00010958,2]
[353133239,1739592634319,-500.0,0.00010958,2]
[353133240,1739592634330,-612.8,0.00010958,2]
[353133241,1739592634339,-500.0,0.00010958,2]
[353133242,1739592634349,-747.95,0.00010958,2]
[353133243,1739592634359,-563.11,0.00010958,2]
[353133244,1739592634370,-500.0,0.00010958,2]
[353133245,1739592634379,-500.0,0.00010958,2]
[353133246,1739592634389,-500.0,0.00010958,2]
[353133247,1739592634398,-500.0,0.00010958,2]
[353133248,1739592634407,-500.0,0.00010958,2]
[353133249,1739592634417,-500.0,0.00010958,2]
[353133250,1739592634427,-500.0,0.00010958,2]
[353133251,1739592634437,-500.0,0.00010958,2]
[353133252,1739592634447,-500.0,0.00010958,2]
[353133253,1739592634456,-500.0,0.00010958,2]
[353133254,1739592634466,-500.0,0.00010958,2]
[353133255,1739592634476,-500.0,0.00010958,2]
[353133256,1739592634486,-502.71051625,0.00010958,2]
[353133257,1739592634495,-500.0,0.00010958,2]
[353133258,1739592634507,-500.0,0.00010958,2]
[353133259,1739592634516,-500.0,0.00010958,2]
[353133260,1739592634526,-500.0,0.00010958,2]
[353133261,1739592634536,-564.01,0.00010958,2]
[353133262,1739592634546,-500.0,0.00010958,2]
[353133263,1739592634555,-500.0,0.00010958,2]
[353133264,1739592634565,-500.0,0.00010958,2]
[353133265,1739592634575,-500.0,0.00010958,2]
[353133266,1739592634585,-566.36,0.00010958,2]
[353133267,1739592634594,-1404.39,0.00010958,2]
[353133268,1739592634604,-926.11,0.00010958,2]
[353133269,1739592634614,-1000.0,0.00010958,2]
[353133270,1739592634624,-500.0,0.00010958,2]
[353133271,1739592634634,-1317.22,0.00010958,2]
[353133272,1739592634644,-500.0,0.00010958,2]
[353133273,1739592634655,-500.0,0.00010958,2]
[353133274,1739592634665,-500.0,0.00010958,2]
[353133275,1739592634674,-500.0,0.00010958,2]
[353133276,1739592634684,-500.0,0.00010958,2]
[353133277,1739592634695,-726.39,0.00010958,2]
[353133278,1739592634705,-500.0,0.00010958,2]
[353133279,1739592634715,-500.0,0.00010958,2]
[353133280,1739592634724,-500.0,0.00010958,2]
[353133281,1739592634734,-1448.43,0.00010958,2]
[353133282,1739592634743,-643.54,0.00010958,2]
[353133283,1739592634752,-533.19,0.00010958,2]
[353133284,1739592634762,-500.0,0.00010958,2]
[353133285,1739592634771,-500.0,0.00010958,2]
[353133286,1739592634781,-502.61636282,0.00010958,2]
[353133287,1739592634790,-538.88,0.00010958,2]
[353133288,1739592634800,-651.94,0.00010958,2]